Cogmind - Beta 15 @@@ ROGUE MODE // 2025.08.01 @ 07:54:27 Player: DURANDAL Result: Destroyed by YI-UF0 with YI-UF0's Doublenader Performance ------------- Evolutions (0) 0 Regions Visited (2) 400 Robots Destroyed (9) 45 Value Destroyed (214) 214 Prototype IDs (1) 20 Alien Tech Used (0) 0 Bonus (0) 0 TOTAL SCORE: 679 Bonus ------- None Cogmind --------- Core Integrity 0/250 Matter 234/300 Energy 250/250 System Corruption 3% Temperature Cool (0) Movement Core (1400) Ox27 Location -10/Mines Parts ------- > --- POWER (1) -------- (None) > --- PROPULSION (2) --- (None) > --- UTILITY (2) ------ Huge Storage Unit Medium Battery > --- WEAPON (2) ------- (None) > --- INVENTORY (25) --- Ion Engine Ion Engine Light Ion Engine Improved Heat Sink Medium Storage Unit Signal Interpreter Power Shielding EM Pulse Gun Medium Laser Small Laser Beam Cannon Light Assault Rifle Mining Laser Peak State ------------ > --- POWER ------------ Light Nuclear Core > --- PROPULSION ------- Light Treads Light Treads > --- UTILITY ---------- Huge Storage Unit Medium Battery > --- WEAPON ----------- Improved Assault Rifle Improved Assault Rifle > --- INVENTORY -------- Ion Engine Ion Engine Light Ion Engine Improved Heat Sink Medium Storage Unit Signal Interpreter Power Shielding EM Pulse Gun Medium Laser Small Laser Light Assault Rifle Improved Assault Rifle Improved Assault Rifle Mining Laser [Rating: 15] Favorites ----------- Power Light Nuclear Core Engine Ion Engine Power Core Light Nuclear Core Propulsion Light Treads Treads Light Treads Utility Medium Battery Storage Medium Battery Weapon Improved Assault Rifle Energy Gun Medium Laser Ballistic Gun Improved Assault Rifle Build | -11 -10 -10 ------- Run | Yrd Mat Min Slots Evolved . | . . . Power . | . . . Propulsion . | . . . Utility . | . . . Weapon . | . . . Parts Attached 15 | 6 9 . Power 2 | 1 1 . Engine 1 | 1 . . Core 1 | . 1 . Reactor . | . . . Propulsion 2 | 2 . . Treads 2 | 2 . . Leg . | . . . Wheel . | . . . Hover . | . . . Flight . | . . . Utility 4 | 1 3 . Device . | . . . Storage 4 | 1 3 . Processor . | . . . Hackware . | . . . Protection . | . . . Artifact . | . . . Weapon 7 | 2 5 . Energy Gun 3 | 2 1 . Energy Cannon . | . . . Ballistic Gun 4 | . 4 . Ballistic Cannon . | . . . Launcher . | . . . Special Weapon . | . . . Impact Weapon . | . . . Slashing Weapon . | . . . Piercing Weapon . | . . . Special Melee Weapon . | . . . Unidentified Prototypes 1 | . 1 . Parts Lost 5 | . . 5 Power 1 | . . 1 Propulsion 2 | . . 2 Utility . | . . . Weapon 2 | . . 2 Highest Loss Streak 5 | . . 5 To Critical Strikes . | . . . Average Backups 9 | 2 9 13 Power 2 | . 2 3 Propulsion . | . . . Utility 3 | . 3 4 Weapon 3 | 1 3 6 Tool/Special . | . . . Unused Backups 8 | . 1 7 Power 2 | . . 2 Propulsion . | . . . Utility 3 | . . 3 Weapon 3 | . 1 2 Tool/Special . | . . . Average Slot Usage (%) 97 | . 97 96 Engine 5 | . 6 . Core 8 | . 7 14 Treads 27 | . 28 25 Storage 25 | . 25 28 Energy Gun 12 | . 13 . Ballistic Gun 15 | . 14 26 Peak Build Rating 15 | 6 15 14 Average Rating 10 | 3 10 13 On Entrance 6 | . 6 14 Naked Turns . | . . . Heaviest Build 93 | 14 93 93 Greatest Support 40 | 40 40 40 Greatest Overweight (x) 2 | 1 2 2 Average Overweight (x) . | . . 2 Largest Inventory Capacity 25 | 8 25 25 Average Capacity 17 | 7 17 25 Most Carried 15 | 7 15 13 Average Carried 9 | 3 9 13 Final Capacity 25 | 8 25 25 Final Carried 13 | 2 13 13 Class Distribution -------------------- 100% | Mutant Dominant Class ---------------- Mutant | -10/Materials Mutant | -10/Mines Resources | -11 -10 -10 ----------- Run | Yrd Mat Min Matter Collected 362 | 231 131 . Remotely . | . . . Salvage Created 329 | . 329 . Parts 21 | . 21 . Haulers Intercepted . | . . . Recyclers Shooed . | . . . Parts Field Recycled . | . . . Retrieved Matter . | . . . Parts Self-Destructed . | . . . Prevented . | . . . Kills | -11 -10 -10 ------- Run | Yrd Mat Min Combat Hostiles Destroyed 7 | . 7 . Guns 7 | . 7 . Classes Destroyed 4 | . 4 . Recycler 1 | . 1 . Watcher 1 | . 1 . Swarmer 3 | . 3 . Grunt 4 | . 4 . Best Kill Streak 3 | . 3 . Combat Bots Only 3 | . 3 . Max Kills in Single Turn 1 | . 1 . Gunslinging . | . . . Exploded . | . . . Melee . | . . . Uniques/NPCs Destroyed . | . . . Combat | -11 -10 -10 -------- Run | Yrd Mat Min Hostile Shots Fired 61 | . 35 26 Missed 23 | . 15 8 Hits 38 | . 20 18 Projectile 38 | . 20 18 AOE 22 | . . 22 Damage Taken 961 | . 217 744 Core 251 | . 34 217 Absorbed by Shields . | . . . Core Remaining (%) 100 | 100 . . Volleys Fired 27 | . 20 7 Largest 2 | . 2 2 Hottest 90 | . 90 46 Shots Fired 53 | . 40 13 Gun 53 | . 40 13 Cannon . | . . . Launcher . | . . . Special . | . . . Kinetic 31 | . 18 13 Thermal 16 | . 16 . Explosive . | . . . Electromagnetic 6 | . 6 . Robot Hit Streak 13 | . 12 13 Robot Miss Streak 3 | . 3 2 Penetration Max . | . . . Secondary Targets 2 | . 2 . Max Gunslinging Chain 1 | . 1 . Shots Hit Robots 38 | . 28 10 Core Hits 18 | . 16 2 Critical Kills . | . . . Critical Parts Destroyed 1 | . . 1 Critical Strikes 3 | . 2 1 Burn 2 | . 2 . Destroy 1 | . . 1 Melee Attacks . | . . . Impact . | . . . Slashing . | . . . Piercing . | . . . Sneak Attacks . | . . . Combat Hostiles . | . . . Follow-up Attacks . | . . . Damage Inflicted 492 | . 350 142 Guns 481 | . 339 142 Cannons . | . . . Explosions . | . . . Melee . | . . . Ramming 11 | . 11 . Kinetic 294 | . 152 142 Thermal 137 | . 137 . Explosive . | . . . Electromagnetic 50 | . 50 . Impact . | . . . Slashing . | . . . Piercing . | . . . Highest Corruption 3 | . 3 3 Average Corruption 3 | . 3 3 Corruption Purged . | . . . Corruption Blocked . | . . . Effects 6 | . 5 1 Message Errors 1 | . 1 . Matter Fused 4 | . 3 1 Parts Fused 1 | . 1 . Overload Shots . | . . . Overflow Damage . | . . . Projectiles . | . . . Explosions . | . . . Melee . | . . . Knockbacks . | . . . Impact . | . . . Kinetic . | . . . Secondary . | . . . Self-Inflicted Damage . | . . . Shots . | . . . Rammed . | . . . Targets Rammed 1 | . 1 . Kicked . | . . . Crushed 1 | . 1 . Highest Temperature 200 | . 200 . Average Temperature 90 | . 90 . Received Heat Transfer 81 | . 81 . Siege Activations . | . . . Martial Activations . | . . . Shielding Activations . | . . . Robots Disrupted . | . . . Combat Hostiles . | . . . Robots Corrupted . | . . . Combat Hostiles . | . . . Parts Fried . | . . . Impact Corruptions . | . . . Robots Melted . | . . . Combat Hostiles . | . . . Parts Melted . | . . . Heat Transferred 555 | . 555 . Parts Sabotaged . | . . . Parts Stolen . | . . . Parts Stripped . | . . . Power Chain Reactions . | . . . Alert | -11 -10 -10 ------- Run | Yrd Mat Min Maximum Alert Level . | . . . Low Security (%) 100 | 100 100 100 Level 1 . | . . . Level 2 . | . . . Level 3 . | . . . Level 4 . | . . . Level 5 . | . . . High Security . | . . . Max Security . | . . . Peak Influence 70 | . 70 22 Initial 22 | . . 22 Average 9 | . 10 6 Influence Increases 210 | . 210 . Destroy 0b10 Robot/C 140 | . 140 . Destroy 0b10 Robot/NC 10 | . 10 . Destroy Leader 32 | . 32 . Successful Hack 28 | . 28 . Influence Decreases 210 | . 152 58 Entered New Map 36 | . . 36 Time Decay 174 | . 152 22 Squads Dispatched . | . . . Investigation . | . . . Extermination . | . . . Reinforcement . | . . . Assault . | . . . Garrison . | . . . Intercept . | . . . Searches Triggered . | . . . Construction Impeded . | . . . Haulers Reinforced . | . . . Active Scanning Responses . | . . . Cargo Convoy Interrupts . | . . . Stealth | -11 -10 -10 --------- Run | Yrd Mat Min Distress Signals . | . . . Communications Jammed . | . . . Distress Signals . | . . . Times Spotted 13 | . 12 1 Peak Tracking Total 3 | . 3 1 Tactical Retreats . | . . . Traps | -11 -10 -10 ------- Run | Yrd Mat Min Traps Triggered . | . . . Indirectly . | . . . Trap Hack Attempts . | . . . Triggered . | . . . Disarmed . | . . . Reprogrammed . | . . . Reused . | . . . Traps Extracted . | . . . Installed . | . . . Triggered . | . . . Machines | -11 -10 -10 ---------- Run | Yrd Mat Min Machines Disabled . | . . . Max in Single Turn . | . . . Machines Repaired . | . . . Machines Dismantled . | . . . Machines Sabotaged . | . . . Overloaded Fab Kills . | . . . Hacking | -11 -10 -10 --------- Run | Yrd Mat Min Machines Accessed 8 | . 8 . Terminals 7 | . 7 . Fabricators . | . . . Repair Stations . | . . . Recycling Units 1 | . 1 . Scanalyzers . | . . . Garrison Access . | . . . Total Hacks 12 | . 12 . Successful 8 | . 8 . Failed 4 | . 4 . Catastrophic . | . . . Database Lockouts . | . . . Manual . | . . . Terminals 11 | . 11 . Fabricators . | . . . Repair Stations . | . . . Recycling Units 1 | . 1 . Scanalyzers . | . . . Garrison Access . | . . . Terminal Hacks 7 | . 7 . Robot Analysis 1 | . 1 . Branch Access Points 1 | . 1 . Locate Traps 3 | . 3 . Hauler Manifests 1 | . 1 . Zone Layout 1 | . 1 . Fabricator Hacks . | . . . Repair Station Hacks . | . . . Recycling Unit Hacks 1 | . 1 . Report Inventory 1 | . 1 . Scanalyzer . | . . . Garrison Access Hacks . | . . . Unauthorized Hacks . | . . . Terminals . | . . . Fabricators . | . . . Repair Stations . | . . . Recycling Units . | . . . Scanalyzers . | . . . Garrison Access . | . . . Data Cores Recovered . | . . . Used . | . . . Hacking Detections 3 | . 3 . Full Trace Events . | . . . Feedback Events . | . . . Feedback Blocked . | . . . Robot Schematics Acquired . | . . . Robots Built . | . . . Authchips . | . . . Time . | . . . Total Robot Build Rating . | . . . Part Schematics Acquired . | . . . Parts Built . | . . . Authchips . | . . . Time . | . . . Total Part Build Rating . | . . . Parts Repaired . | . . . Time . | . . . Parts Recycled . | . . . Recycled Matter . | . . . Retrieved Matter . | . . . Retrieved Components . | . . . Parts Scanalyzed . | . . . Part Schematics Acquired . | . . . Parts Damaged . | . . . Bothacking | -11 -10 -10 ------------ Run | Yrd Mat Min Used RIF Installer . | . . . Robots Hacked . | . . . Non-combat . | . . . Combat . | . . . Robot Hacks Applied . | . . . Relay Couplers Released . | . . . Fabnet Peak Effective % . | . . . Robots Rewired . | . . . Allies Hacked . | . . . Hacks Repelled . | . . . Allies | -11 -10 -10 -------- Run | Yrd Mat Min Total Allies . | . . . Largest Group . | . . . Highest-Rated Group . | . . . Highest-Rated Ally . | . . . Total Orders . | . . . Ally Attacks . | . . . Total Damage . | . . . Kills . | . . . Allies Corrupted . | . . . Allies Melted . | . . . Intel | -11 -10 -10 ------- Run | Yrd Mat Min Active Infowar (turns) . | . . . Robot Analysis Total 1 | . 1 . Derelict Logs Recovered . | . . . Drone Launches . | . . . Drone Recoveries . | . . . Exploration | -11 -10 -10 ------------- Run | Yrd Mat Min Turns Passed 1109 | 55 950 104 Spaces Moved 453 | 34 393 26 Core 19 | 19 . . Treads 434 | 15 393 26 Legs . | . . . Wheels . | . . . Hover . | . . . Flight . | . . . Fastest Speed 50 | 50 160 320 Average Speed 214 | 125 215 320 Slowest Speed 320 | 160 320 320 Overloaded Moves . | . . . Propulsion Burnouts . | . . . Robots Hopped . | . . . Potential Cave-ins . | . . . Cave-ins Triggered . | . . . Exploration Rate (%) 26 | 3 63 14 Regions Visited 2 Branch Regions 1 Pre-discovered Areas . | . . . Known Exits Taken 1 | . 1 . Unknown Exits Taken 1 | 1 . . Scrap Searched . | . . . Spaces Dug . | . . . Terrain Destroyed . | . . . Melee . | . . . Projectile . | . . . AOE . | . . . Terrain Rammed . | . . . Walls Destroyed . | . . . Machines Disabled . | . . . Actions | -11 -10 -10 --------- Run | Yrd Mat Min Total 542 | 47 462 33 Wait 17 | . 17 . Move 451 | 33 392 26 Hop . | . . . Pick Up 23 | 8 15 . Fast Attach . | . . . Attach 12 | 6 6 . Detach 5 | . 5 . Swap 3 | . 3 . Drop 3 | . 3 . Fire 27 | . 20 7 Melee . | . . . Ram . | . . . Kick . | . . . Crush 1 | . 1 . Escape Stasis . | . . . Rewire . | . . . Trap . | . . . Miscellaneous . | . . . Route ------- -11/Scrapyard -10/Materials (discovered 3 exits: [*Mat] / *Min x2) -10/Mines History --------- Turn | Location | Event 36 | -11/Scrapyard | Discovered new exit (range 12) 56 | -11/Scrapyard | Entered Materials 305 | -10/Materials | Build established: Mutant 314 | -10/Materials | Identified exit to Mines 531 | -10/Materials | Discovered new exit (range 16) 1006 | -10/Materials | Entered Mines 1095 | -10/Mines | Core integrity fell below 50% 1105 | -10/Mines | Core integrity fell below 20% 1110 | -10/Mines | Destroyed by YI-UF0 with YI-UF0's Doublenader Last Messages --------------- 01005_ System corrupted: Matter fused (-8). LOCATION=MINES GOAL=ESCAPE Something is scanning the area. 01007_ A crazy derelict wanders into view. 01011_ YI-UF0 mumbles something. 01066_ System corrupted: Matter fused (-8). 01085_ The unstable cave ceiling collapses. 01091_ R-06 Scavenger collects Lgt. Ion Engine. 01092_ The unstable cave ceiling collapses. 01094_ R-06 Scavenger collects Wheel. 01096_ The unstable cave ceiling collapses. 01097_ YI-UF0 mumbles something. 01100_ Lgt. Treads destroyed. 01102_ YI-UF0 suffers critical hit (Destroy). 01102_ Destroyed Prototype Storage. 01106_ U-05 Engineer builds a Wall. 01108_ Imp. Assault Rifle destroyed. 01110_ Lgt. Nuclear Core destroyed. 01110_ Imp. Assault Rifle destroyed. Map ----- +----------------------------------------------------+ | ????????????????????????????????????? | | ????????????????????????????????????? | | ????????????????????????????????????? | | ????????????????????????????????????? | | ????????????????????????????????????? | | ????????????????????????????????????? | | ????????????????????????????????????? | | ????????????????????????????????????? | | ????????????????????????????????????? | | ????????????????????????????????????? | | ????????????????????????????????????? | | ???????????????? ???????????????????? | | ???????????????u " ????????????????? | | ??????????????? ????????????????? | | ??????????????# ????????????????? | | ????????????## ?????????????????? | | ??????????## #?????????????????? | | ??????????# #?????????????????? | | ??????????# [ #?????????????????? | | ??????????# g #?????????????????? | | ????????### #?????????????????? | | ???????## #?????????????????? | | ???????# ######????????????? | | ???????# #????????????? | | ???????# #???????????????? | | ????????# @ #?????????????????? | | ???????# #?????????????????? | | ???????# ##?????????????????? | | ??????# #??????????????????? | | ??????# ##?????????????????? | | ??????# #?????????????????? | | ??????# ##### #?????????????????? | | ??????# ??### ###???????????????? | | ??????# ### ##??????????????? | | ?????## #??????????????? | | ?????# ##?????????????? | | ?????# #?????????????? | | ?????## ## #?????????????? | | ??????####?## #?????????????? | | ????????????## ##?????????????? | | ????????????## ##??????????????? | | ??????????### #####???????????????? | | ??????????# ##???????????????????? | | ?????????# ##????????????????????? | | ????????# #?????????????????????? | | ??????? #?????????????????????? | | ????? #?????????????????????? | | ??? #?????????????????????? | | ??## ##?????????????????????? | | ???## ## ##???????????????????????? | +----------------------------------------------------+ Best States ------------- Heat Dissipation 25 Energy Generation 14 Energy Capacity 400 Matter Stores 300 Matter Capacity 300 Sight Range 16 Terrain Scan Density 10 Evasion (%) 40 Recoil Reduction 2 Item Schematics ----------------- None Robot Schematics ------------------ None Fabricated ------------ Nothing Repaired ---------- Nothing Alien Tech Used ----------------- None Achievements -------------- None Challenges ------------ None Game ------ Seed LatentAblativeDetector Manual? 0 Play Time 00:09:14 Cumulative 23.2 hours Start 2025.08.01 @ 07:45:54 End 2025.08.01 @ 07:54:27 Sessions 1 Manual Loads 0 Difficulty Rogue Special Mode None Game No. 44 Rogue 44 Adventurer 0 Explorer 0 Win Type - Total 0 Types 0/0/0/0/0/0/0/0/0/0 Lore% 18 Gallery% 17 Achievement% 19 Wizard Run 0 Options --------- Layout 1 ASCII 0 Keyboard 0 Movement Numpad Keybinds 0 Fullscreen 1 Font 32/SmallcapsGlow Map View 50x35 Zoom Use 0% Tactical HUD 1 Map Filters NONE Filters NONE Steam 1 RUN: ee9dcb7c-3144-4680-9175-4826c47ef488